fUSD/lending_fUSD_20260518
["ID","MTS","AMOUNT","RATE_DAILY","PERIOD"]
[422567288,1779096309000,2000.0,0.00028902,120]
[422567289,1779096394000,-199.1138643,0.00014249,2]
[422567290,1779096540000,1000.0,0.00030136,120]
[422567291,1779096632000,-300.8861357,0.00014249,2]
[422567292,1779096632000,-500.0,0.00014249,2]
[422567294,1779096632000,-152.0,0.00014891,7]
[422567296,1779096632000,-175.05,0.00015374,2]
[422567293,1779096632000,-152.0,0.00014891,7]
[422567297,1779096632000,-163.0,0.00015502,2]
[422567295,1779096632000,-152.0,0.00014895,7]
[422567298,1779096633000,-51.86755269,0.00015674,2]
[422567303,1779096633000,-1257.33286469,0.00015913,2]
[422567299,1779096633000,-198.13244731,0.00015674,2]
[422567304,1779096633000,-150.0,0.00015983,2]
[422567302,1779096633000,-2374.66713531,0.00015913,2]
[422567300,1779096633000,-1270.0,0.00015913,2]
[422567305,1779096633000,-300.0,0.00016,2]
[422567306,1779096633000,-1019.19597234,0.00016116,2]
[422567308,1779096633000,-1865.97484225,0.00016116,2]
[422567307,1779096633000,-478.6087615,0.00016116,2]
[422567309,1779096633000,-1586.26738872,0.00016116,2]
[422567310,1779096633000,-1267.11995351,0.00016116,2]
[422567301,1779096633000,-1224.0,0.00015913,2]
[422567331,1779096638000,-1000.0,0.000186,2]
[422567332,1779096638000,-314.0,0.000186,2]
[422567324,1779096638000,-215.11887611,0.00016194,2]
[422567322,1779096638000,-299.99,0.00016116,4]
[422567321,1779096638000,-5080.35443218,0.00016116,2]
[422567325,1779096638000,-208.5339928,0.00016309,2]
[422567327,1779096638000,-169.84,0.00016712,2]
[422567330,1779096638000,-607.1,0.0001841,2]
[422567320,1779096638000,-969.48546444,0.00016116,2]
[422567318,1779096638000,-3299.90140979,0.00016116,2]
[422567319,1779096638000,-650.24869359,0.00016116,2]
[422567317,1779096638000,-1117.84308168,0.00016116,2]
[422567329,1779096638000,-194.10399504,0.00018321,3]
[422567326,1779096638000,-607.1,0.00016438,2]
[422567323,1779096638000,-999.99,0.00016116,2]
[422567335,1779096638000,-150.0,0.00018818,2]
[422567328,1779096638000,-350.0,0.00018,2]
[422567346,1779096638000,-459.05527314,0.00019323,2]
[422567344,1779096638000,-500.0,0.00019323,2]
[422567336,1779096638000,-250.0,0.00018828,2]
[422567334,1779096638000,-172.05199751,0.00018687,3]
[422567337,1779096638000,-1270.0,0.00018913,2]
[422567343,1779096638000,-500.0,0.00019323,2]
[422567345,1779096638000,-500.0,0.00019323,2]
[422567340,1779096638000,-1091.20422196,0.00019268,2]
[422567339,1779096638000,-3632.0,0.00018913,2]
[422567333,1779096638000,-308.0,0.000186,2]
[422567341,1779096638000,-908.79577804,0.00019268,2]
[422567342,1779096638000,-721.12765535,0.00019323,2]
[422567338,1779096638000,-1224.0,0.00018913,2]
[422567365,1779096640000,-500.0,0.00019323,2]
[422567368,1779096640000,-314.3403825,0.00019323,2]
[422567369,1779096640000,-151.0,0.00019323,2]
[422567371,1779096640000,-151.0,0.00019323,2]
[422567367,1779096640000,-185.6596175,0.00019323,2]
[422567363,1779096640000,-500.0,0.00019323,2]
[422567359,1779096640000,-500.0,0.00019323,2]
[422567361,1779096640000,-12.09749788,0.00019323,2]
[422567362,1779096640000,-500.0,0.00019323,2]
[422567360,1779096640000,-487.90250212,0.00019323,2]
[422567358,1779096640000,-200.0,0.00019323,2]
[422567357,1779096640000,-40.94472686,0.00019323,2]
[422567364,1779096640000,-500.0,0.00019323,2]
[422567381,1779096640000,-151.0,0.00019323,2]
[422567366,1779096640000,-578.20924308,0.00019323,2]
[422567378,1779096640000,-151.0,0.00019323,2]
[422567370,1779096640000,-151.0,0.00019323,2]
[422567385,1779096640000,-151.0,0.00019323,2]
[422567386,1779096640000,-151.0,0.00019323,2]
[422567383,1779096640000,-151.0,0.00019323,2]
[422567382,1779096640000,-151.0,0.00019323,2]
[422567376,1779096640000,-151.0,0.00019323,2]
[422567384,1779096640000,-151.0,0.00019323,2]
[422567373,1779096640000,-151.0,0.00019323,2]
[422567374,1779096640000,-151.0,0.00019323,2]
[422567372,1779096640000,-151.0,0.00019323,2]
[422567377,1779096640000,-151.0,0.00019323,2]
[422567380,1779096640000,-151.0,0.00019323,2]
[422567375,1779096640000,-151.0,0.00019323,2]
[422567379,1779096640000,-151.0,0.00019323,2]
[422567419,1779096641000,-500.0,0.0002,2]
[422567413,1779096641000,-200.0,0.00019871,2]
[422567409,1779096641000,-152.0,0.00019323,2]
[422567412,1779096641000,-248.85,0.00019864,2]
[422567414,1779096641000,-1215.391,0.000199,2]
[422567417,1779096641000,-400.0,0.0002,2]
[422567415,1779096641000,-463.0,0.00019935,5]
[422567416,1779096641000,-432.0,0.00019935,5]
[422567429,1779096641000,-500.0,0.0002,2]
[422567422,1779096641000,-500.0,0.0002,2]
[422567418,1779096641000,-500.0,0.0002,2]
[422567420,1779096641000,-500.0,0.0002,2]
[422567425,1779096641000,-500.0,0.0002,2]
[422567421,1779096641000,-500.0,0.0002,2]
[422567423,1779096641000,-500.0,0.0002,2]
[422567428,1779096641000,-500.0,0.0002,2]
[422567411,1779096641000,-200.0,0.00019349,2]
[422567427,1779096641000,-500.0,0.0002,2]
[422567424,1779096641000,-500.0,0.0002,2]
[422567430,1779096641000,-500.0,0.0002,2]
[422567408,1779096641000,-152.0,0.00019323,2]
[422567403,1779096641000,-152.0,0.00019323,2]
[422567407,1779096641000,-152.0,0.00019323,2]
[422567393,1779096641000,-151.0,0.00019323,2]
[422567392,1779096641000,-151.0,0.00019323,2]
[422567391,1779096641000,-151.0,0.00019323,2]
[422567390,1779096641000,-151.0,0.00019323,2]
[422567387,1779096641000,-151.0,0.00019323,2]
[422567388,1779096641000,-151.0,0.00019323,2]
[422567389,1779096641000,-151.0,0.00019323,2]
[422567395,1779096641000,-151.0,0.00019323,2]
[422567394,1779096641000,-151.0,0.00019323,2]
[422567410,1779096641000,-152.0,0.00019323,2]
[422567405,1779096641000,-152.0,0.00019323,2]
[422567396,1779096641000,-151.0,0.00019323,2]
[422567397,1779096641000,-151.0,0.00019323,2]
[422567404,1779096641000,-152.0,0.00019323,2]
[422567431,1779096641000,-154.0,0.0002,2]
[422567401,1779096641000,-151.0,0.00019323,2]
[422567398,1779096641000,-152.0,0.00019323,2]
[422567402,1779096641000,-152.0,0.00019323,2]
[422567400,1779096641000,-152.0,0.00019323,2]
[422567399,1779096641000,-151.0,0.00019323,2]
[422567406,1779096641000,-152.0,0.00019323,2]
[422567432,1779096641000,-251.0,0.0002,2]
[422567426,1779096641000,-500.0,0.0002,2]
[422567435,1779096641000,-261.0,0.0002,2]
[422567459,1779096641000,-900.0,0.00022,8]
[422567469,1779096641000,-340.0,0.00022,2]
[422567468,1779096641000,-251.0,0.00022,2]
[422567463,1779096641000,-900.0,0.00022,8]
[422567460,1779096641000,-900.0,0.00022,8]
[422567465,1779096641000,-218.95696896,0.00022,8]
[422567441,1779096641000,-311.97729111,0.00021,2]
[422567461,1779096641000,-900.0,0.00022,8]
[422567462,1779096641000,-900.0,0.00022,8]
[422567458,1779096641000,-900.0,0.00022,8]
[422567467,1779096641000,-154.0,0.00022,2]
[422567470,1779096641000,-261.0,0.00022,2]
[422567471,1779096641000,-198.22007122,0.00022,3]
[422567472,1779096641000,-890.0,0.00022,2]
[422567473,1779096641000,-747.8093786,0.00022062,2]
[422567474,1779096641000,-274.64107955,0.00022062,2]
[422567476,1779096641000,-5413.8608892,0.0002258,2]
[422567475,1779096641000,-607.1,0.00022353,2]
[422567478,1779096641000,-256.91162453,0.0002258,2]
[422567477,1779096641000,-4553.33682155,0.0002258,2]
[422567466,1779096641000,-450.0,0.00022,2]
[422567453,1779096641000,-1224.0,0.00021913,2]
[422567464,1779096641000,-800.0,0.00022,8]
[422567454,1779096641000,-3632.0,0.00021913,2]
[422567440,1779096641000,-204.09633539,0.00020419,2]
[422567455,1779096641000,-5000.0,0.00021918,2]
[422567433,1779096641000,-340.0,0.0002,2]
[422567438,1779096641000,-300.0,0.000201,10]
[422567439,1779096641000,-607.1,0.00020381,2]
[422567437,1779096641000,-890.0,0.0002,2]
[422567436,1779096641000,-154.0,0.0002,2]
[422567443,1779096641000,-1730.39186702,0.00021,2]
[422567442,1779096641000,-254.0,0.00019935,5]
[422567444,1779096641000,-154.0,0.00021,2]
[422567434,1779096641000,-200.0,0.0002,10]
[422567457,1779096641000,-900.0,0.00022,8]
[422567456,1779096641000,-900.0,0.00022,8]
[422567445,1779096641000,-251.0,0.00021,2]
[422567452,1779096641000,-1270.0,0.00021913,2]
[422567447,1779096641000,-261.0,0.00021,2]
[422567448,1779096641000,-168.0,0.00021,2]
[422567451,1779096641000,-2000.0,0.00021677,2]
[422567449,1779096641000,-890.0,0.00021,2]
[422567450,1779096641000,-6960.0,0.00021489,2]
[422567446,1779096641000,-340.0,0.00021,2]
[422567493,1779096643000,-421.3571714,0.0002258,2]
[422567494,1779096643000,-1141.95986912,0.0002258,2]
[422567492,1779096643000,-560.72208572,0.0002258,2]
[422567495,1779096643000,-948.99511889,0.0002258,2]
[422567496,1779096643000,-1220.52685329,0.0002258,2]
[422567499,1779096643000,-2147.57457912,0.0002258,2]
[422567498,1779096643000,-250.0,0.0002258,2]
[422567497,1779096643000,-343.10411232,0.0002258,2]
[422567560,1779096646000,-930.0,0.00021913,2]
[422567561,1779096646000,-126.81402868,0.0002258,2]
[422567558,1779096646000,-930.0,0.00015913,2]
[422567559,1779096646000,-930.0,0.00018913,2]
[422567569,1779096647000,-251.0,0.00023,2]
[422567567,1779096647000,-152.0,0.00022857,2]
[422567565,1779096647000,-591.0,0.0002258,7]
[422567570,1779096647000,-340.0,0.00023,2]
[422567562,1779096647000,-43121.50227988,0.0002258,2]
[422567563,1779096647000,-505.0,0.0002258,7]
[422567564,1779096647000,-651.0,0.0002258,7]
[422567568,1779096647000,-154.0,0.00023,2]
[422567574,1779096647000,-816.0,0.00023,2]
[422567572,1779096647000,-261.0,0.00023,2]
[422567571,1779096647000,-152.0,0.00023,30]
[422567576,1779096647000,-152.0,0.00023154,30]
[422567573,1779096647000,-1034.0,0.00023,2]
[422567578,1779096647000,-6151.57,0.00023188,2]
[422567575,1779096647000,-890.0,0.00023,2]
[422567579,1779096647000,-22948.18765015,0.00023593,2]
[422567566,1779096647000,-730.61390264,0.00022757,2]
[422567582,1779096668000,171.22555,0.00026849,120]
[422567583,1779096694000,165.9,0.00027704,120]
[422567584,1779097092000,2000.0,0.00028564,120]
[422567586,1779097268000,250.0,0.00014,2]
[422567588,1779097448000,2893.843,0.00030136,120]
[422567590,1779097493000,152.41,0.00010162,2]
[422567592,1779097493000,152.41,0.00013416,2]
[422567591,1779097493000,152.41,0.00011789,2]
[422567594,1779097502000,2313.0,0.000139,2]
[422567610,1779097741000,1000.0,0.00030135,120]
[422567633,1779097832000,-52.2406618,0.0001722,2]
[422567635,1779097832000,-215.11887611,0.00017505,2]
[422567636,1779097832000,-5840.17881977,0.00017728,2]
[422567638,1779097832000,-388.8323745,0.00017728,2]
[422567639,1779097832000,-209.42503572,0.00017728,2]
[422567641,1779097832000,-152.41,0.00018298,2]
[422567637,1779097832000,-1063.57377001,0.00017728,2]
[422567649,1779097832000,-1224.0,0.00019772,2]
[422567643,1779097832000,-153.85503572,0.0001841,2]
[422567642,1779097832000,-250.84496428,0.0001841,2]
[422567644,1779097832000,-104.14496431,0.00019442,2]
[422567645,1779097832000,-145.85503569,0.00019442,2]
[422567646,1779097832000,-500.0,0.00019509,2]
[422567648,1779097832000,-1219.85503569,0.00019772,2]
[422567647,1779097832000,-134.14496431,0.00019772,2]
[422567634,1779097832000,-208.5339928,0.00017439,2]
[422567640,1779097832000,-158.0,0.00017728,2]
[422567631,1779097832000,-163.0,0.000169,2]
[422567621,1779097832000,-300.0,0.00016185,2]
[422567630,1779097832000,-3632.0,0.00016772,2]
[422567613,1779097832000,-160.0,0.00014828,2]
[422567612,1779097832000,-395.0,0.00014714,2]
[422567616,1779097832000,-2517.77365101,0.00014943,2]
[422567617,1779097832000,-152.41,0.00015043,2]
[422567615,1779097832000,-152.0,0.00014895,7]
[422567614,1779097832000,-395.0,0.00014855,2]
[422567619,1779097832000,-152.0,0.00015673,7]
[422567618,1779097832000,-152.0,0.00015673,7]
[422567623,1779097832000,-404.7,0.00016438,2]
[422567620,1779097832000,-152.0,0.00015678,7]
[422567622,1779097832000,-2224.9109754,0.00016185,2]
[422567625,1779097832000,-1354.0,0.00016772,2]
[422567627,1779097832000,-625.0,0.00016772,2]
[422567624,1779097832000,-152.41,0.00016671,2]
[422567626,1779097832000,-2857.492,0.00016772,2]
[422567628,1779097832000,-1224.0,0.00016772,2]
[422567629,1779097832000,-930.0,0.00016772,2]
[422567632,1779097832000,-2257.7593382,0.0001722,2]
[422567650,1779097832000,-930.0,0.00019772,2]
[422567651,1779097832000,-482.295,0.00019772,2]
[422567652,1779097832000,-152.41,0.00019925,2]
[422567679,1779097832000,-151.0,0.0002025,2]
[422567675,1779097832000,-151.0,0.0002025,2]
[422567677,1779097832000,-151.0,0.0002025,2]
[422567678,1779097832000,-151.0,0.0002025,2]
[422567681,1779097832000,-151.0,0.0002025,2]
[422567680,1779097832000,-151.0,0.0002025,2]
[422567683,1779097832000,-151.0,0.0002025,2]
[422567653,1779097832000,-201.0,0.0002,2]
[422567684,1779097832000,-151.0,0.0002025,2]
[422567686,1779097832000,-151.0,0.0002025,2]
[422567685,1779097832000,-151.0,0.0002025,2]
[422567688,1779097832000,-151.0,0.0002025,2]
[422567687,1779097832000,-151.0,0.0002025,2]
[422567690,1779097832000,-151.0,0.0002025,2]
[422567691,1779097832000,-151.0,0.0002025,2]
[422567692,1779097832000,-151.0,0.0002025,2]
[422567689,1779097832000,-151.0,0.0002025,2]
[422567676,1779097832000,-151.0,0.0002025,2]
[422567673,1779097832000,-151.0,0.0002025,2]
[422567682,1779097832000,-151.0,0.0002025,2]
[422567672,1779097832000,-240.44193431,0.0002025,2]
[422567674,1779097832000,-151.0,0.0002025,2]
[422567655,1779097832000,-200.0,0.0002,10]
[422567654,1779097832000,-272.0,0.0002,2]
[422567657,1779097832000,-154.25318114,0.0002,20]
[422567656,1779097832000,-209.0,0.0002,2]
[422567660,1779097832000,-462.0,0.00020158,2]
[422567658,1779097832000,-300.0,0.000201,10]
[422567662,1779097832000,-339.07044615,0.0002025,2]
[422567661,1779097832000,-500.0,0.0002025,2]
[422567659,1779097832000,-151.91,0.00020121,2]
[422567663,1779097832000,-500.0,0.0002025,2]
[422567668,1779097832000,-500.0,0.0002025,2]
[422567666,1779097832000,-500.0,0.0002025,2]
[422567665,1779097832000,-500.0,0.0002025,2]
[422567667,1779097832000,-500.0,0.0002025,2]
[422567670,1779097832000,-500.0,0.0002025,2]
[422567669,1779097832000,-500.0,0.0002025,2]
[422567664,1779097832000,-500.0,0.0002025,2]
[422567671,1779097832000,-500.0,0.0002025,2]
[422567707,1779097833000,-770.0,0.000205,2]
[422567708,1779097833000,-696.0,0.000205,2]
[422567711,1779097833000,-201.0,0.00021,2]
[422567712,1779097833000,-272.0,0.00021,2]
[422567709,1779097833000,-2000.0,0.00020774,2]
[422567706,1779097833000,-517.0,0.000205,2]
[422567704,1779097833000,-151.0,0.0002025,2]
[422567710,1779097833000,-972.313,0.00020912,2]
[422567705,1779097833000,-404.7,0.00020381,2]
[422567714,1779097833000,-2313.0,0.00021118,2]
[422567703,1779097833000,-151.0,0.0002025,2]
[422567702,1779097833000,-151.0,0.0002025,2]
[422567701,1779097833000,-151.0,0.0002025,2]
[422567697,1779097833000,-151.0,0.0002025,2]
[422567699,1779097833000,-169.83150446,0.0002025,2]
[422567698,1779097833000,-151.0,0.0002025,2]
[422567696,1779097833000,-151.0,0.0002025,2]
[422567695,1779097833000,-151.0,0.0002025,2]
[422567694,1779097833000,-151.0,0.0002025,2]
[422567700,1779097833000,-151.0,0.0002025,2]
[422567713,1779097833000,-209.0,0.00021,2]
[422567693,1779097833000,-151.0,0.0002025,2]
[422567718,1779097833000,-900.0,0.00022,8]
[422567734,1779097833000,-2616.10127688,0.0002248,2]
[422567735,1779097833000,-6267.33691747,0.0002248,2]
[422567736,1779097833000,-574.81083747,0.0002248,2]
[422567732,1779097833000,-14478.54283471,0.0002248,2]
[422567716,1779097833000,-152.0,0.0002198,3]
[422567730,1779097833000,-51129.45277126,0.0002248,2]
[422567731,1779097833000,-458.44747329,0.0002248,2]
[422567726,1779097833000,-201.0,0.00022,2]
[422567729,1779097833000,-404.7,0.00022353,2]
[422567727,1779097833000,-272.0,0.00022,2]
[422567733,1779097833000,-727.07592786,0.0002248,2]
[422567724,1779097833000,-900.0,0.00022,8]
[422567725,1779097833000,-161.68,0.00022,7]
[422567723,1779097833000,-900.0,0.00022,8]
[422567722,1779097833000,-900.0,0.00022,8]
[422567721,1779097833000,-900.0,0.00022,8]
[422567719,1779097833000,-900.0,0.00022,8]
[422567720,1779097833000,-900.0,0.00022,8]
[422567715,1779097833000,-2142.49,0.00021682,2]
[422567717,1779097833000,-900.0,0.00022,8]
[422567728,1779097833000,-209.0,0.00022,2]
[422567740,1779097838000,-24385.38661609,0.0002248,2]
[422567743,1779097838000,-716.96909741,0.00022566,2]
[422567741,1779097838000,-20824.31904497,0.0002248,2]
[422567742,1779097838000,-325.0,0.0002248,7]
[422567744,1779097838000,-585.4317508,0.00022664,2]
[422567749,1779097838000,-3080.06552926,0.0002267,2]
[422567745,1779097838000,-500.0,0.00022669,2]
[422567748,1779097838000,-1041.50789886,0.0002267,2]
[422567747,1779097838000,-447.32146826,0.0002267,2]
[422567750,1779097838000,-4141.68819111,0.0002267,2]
[422567746,1779097838000,-55261.08035147,0.0002267,2]
[422567798,1779097843000,-1017.279678,0.00022367,2]
[422567799,1779097843000,-3428.720322,0.0002267,2]
[422567800,1779097843000,-1036.00789789,0.0002267,2]
[422567810,1779097844000,-930.0,0.00022772,2]
[422567811,1779097844000,-219.88596406,0.00022899,3]
[422567807,1779097844000,-355.0,0.0002267,7]
[422567809,1779097844000,-1210.212,0.00022772,2]
[422567808,1779097844000,-1354.0,0.00022772,2]
[422567806,1779097844000,-10660.5086579,0.0002267,2]
[422567805,1779097844000,-1465.8303919,0.0002267,2]
[422567803,1779097844000,-995.43316045,0.0002267,2]
[422567804,1779097844000,-12759.3391808,0.0002267,2]
[422567802,1779097844000,-1314.514422,0.0002267,2]
[422567801,1779097844000,-418.0,0.00016772,2]
[422567819,1779097846000,-418.0,0.00019772,2]
[422567821,1779097846000,-1366.11403594,0.00022899,3]
[422567822,1779097846000,-706.0,0.00022899,7]
[422567820,1779097846000,-418.0,0.00022772,2]
[422567828,1779097846000,-690.0,0.00023,2]
[422567827,1779097846000,-272.0,0.00023,2]
[422567824,1779097846000,-254.0,0.00022899,7]
[422567825,1779097846000,-5027.71304547,0.00022992,2]
[422567826,1779097846000,-201.0,0.00023,2]
[422567823,1779097846000,-372.0,0.00022899,7]
[422567837,1779097847000,-2000.0,0.00023492,2]
[422567831,1779097847000,-1888.38035742,0.00023264,2]
[422567830,1779097847000,-152.0,0.00023111,30]
[422567829,1779097847000,-209.0,0.00023,2]
[422567832,1779097847000,-165.9,0.00023266,2]
[422567834,1779097847000,-1394.04,0.00023364,2]
[422567833,1779097847000,-5000.0,0.00023298,2]
[422567835,1779097847000,-2000.0,0.0002337,2]
[422567836,1779097847000,-26116.1224,0.00023492,2]
[422567840,1779097847000,-500.0,0.00023592,2]
[422567838,1779097847000,-505.64447127,0.00023592,2]
[422567846,1779097847000,-951.18618838,0.00023868,2]
[422567848,1779097847000,-846.81381162,0.00023989,2]
[422567845,1779097847000,-153.96381162,0.00023868,2]
[422567844,1779097847000,-476.0,0.00023794,2]
[422567842,1779097847000,-1693.6283614,0.0002375,2]
[422567841,1779097847000,-1105.15,0.00023748,2]
[422567839,1779097847000,-500.0,0.00023592,2]
[422567847,1779097847000,-152.0,0.00023903,2]
[422567843,1779097847000,-5793.29275286,0.0002375,2]
[422567868,1779097870000,-152.0,0.00015689,7]
[422567869,1779097875000,199967.01877156,0.00030137,120]
[422567871,1779097884000,675.886597,0.00027145,120]
[422567872,1779097888000,177.270146,0.00027145,120]
[422567875,1779097951000,2000.0,0.00028887,120]
[422567876,1779098005000,1606703.60236397,0.00028,120]
[422567877,1779098083000,199.145157,0.00025872,120]
[422567878,1779098106000,-320.0,0.00015558,2]
[422567883,1779098184000,1012.0,0.000265,120]
[422567889,1779098502000,158.42845197,0.000271,120]
[422567891,1779098577000,190.093105,0.000245,120]
[422567894,1779098625000,194.94,0.00013018,2]
[422567893,1779098625000,194.94,8.794e-05,2]
[422567896,1779098703000,150.0,0.00013488,2]
[422567897,1779098706000,150.0,0.00013488,2]
[422567898,1779098707000,150.0,0.00013488,2]
[422567899,1779098709000,150.0,0.00013488,2]
[422567901,1779098713000,150.0,0.00013488,2]
[422567902,1779098713000,150.0,0.00013488,2]
[422567900,1779098713000,150.0,0.00013488,2]
[422567903,1779098714000,150.0,0.00013987,2]
[422567904,1779098716000,150.0,0.00013488,2]
[422567907,1779098720000,150.0,0.00013916,2]
[422567905,1779098720000,150.0,0.00013488,2]
[422567906,1779098720000,150.0,0.00013702,2]
[422567908,1779098723000,150.0,0.00013488,2]
[422567915,1779098876000,3664.315496,0.00013948,2]
[422567938,1779099031000,-10100.0,0.000145,5]
[422567946,1779099031000,-2500.0,0.000147,5]
[422567941,1779099031000,-12600.0,0.000146,5]
[422567940,1779099031000,-150.0,0.00014558,2]
[422567935,1779099031000,-250.0,0.00014432,2]
[422567937,1779099031000,-150.0,0.00014499,2]
[422567936,1779099031000,-150.0,0.00014487,2]
[422567933,1779099031000,-7500.0,0.000144,5]
[422567932,1779099031000,-150.0,0.00014344,2]
[422567934,1779099031000,-4300.0,0.000144,5]
[422567929,1779099031000,-150.0,0.00014237,2]
[422567928,1779099031000,-150.0,0.00014237,2]
[422567947,1779099031000,-793.38635726,0.000147,5]
[422567927,1779099031000,-1400.0,0.000142,5]
[422567931,1779099031000,-2800.0,0.000143,5]
[422567925,1779099031000,-369.98931999,0.000142,5]
[422567924,1779099031000,-405.21062676,0.000142,5]
[422567919,1779099031000,-150.0,0.0001413,2]
[422567923,1779099031000,-415.21648427,0.000142,5]
[422567921,1779099031000,-1015.04698736,0.00014199,2]
[422567922,1779099031000,-94.78351573,0.00014199,2]
[422567920,1779099031000,-90.16949691,0.00014199,2]
[422567918,1779099031000,-1630.72,0.00014019,2]
[422567930,1779099031000,-5000.0,0.000143,5]
[422567939,1779099031000,-5700.0,0.000145,5]
[422567926,1779099031000,-1309.58356898,0.000142,5]
[422567945,1779099031000,-777.85,0.000147,2]
[422567942,1779099031000,-7200.0,0.000146,5]
[422567972,1779099031000,-184.55930981,0.00014982,2]
[422567970,1779099031000,-535.39373553,0.00014955,2]
[422567968,1779099031000,-184.55930981,0.00014941,2]
[422567973,1779099031000,-535.39373553,0.00014982,2]
[422567969,1779099031000,-535.39373553,0.00014941,2]
[422567971,1779099031000,-535.39373553,0.00014968,2]
[422567967,1779099031000,-535.39373553,0.00014927,2]
[422567966,1779099031000,-535.39373553,0.00014914,2]
[422567963,1779099031000,-535.39373554,0.000149,2]
[422567964,1779099031000,-219.46125372,0.000149,2]
[422567965,1779099031000,-4322.13125952,0.000149,2]
[422567974,1779099031000,-278.83771142,0.00014986,2]
[422567957,1779099031000,-207.02128248,0.000149,2]
[422567943,1779099031000,-250.0,0.00014672,2]
[422567953,1779099031000,-1502.49797728,0.00014899,2]
[422567944,1779099031000,-164.0,0.0001468,2]
[422567962,1779099031000,-1400.0,0.000149,5]
[422567949,1779099031000,-150.0,0.00014772,2]
[422567959,1779099031000,-5000.0,0.000149,2]
[422567961,1779099031000,-184.55930982,0.000149,2]
[422567948,1779099031000,-606.61364274,0.000147,5]
[422567951,1779099031000,-1400.0,0.000148,5]
[422567950,1779099031000,-2500.0,0.000148,5]
[422567955,1779099031000,-1502.49797727,0.00014899,2]
[422567960,1779099031000,-2500.0,0.000149,5]
[422568011,1779099032000,-500.0,0.00014999,2]
[422568015,1779099032000,-500.0,0.00014999,2]
[422568012,1779099032000,-500.0,0.00014999,2]
[422568021,1779099032000,-500.0,0.00014999,2]
[422568008,1779099032000,-500.0,0.00014999,2]
[422568000,1779099032000,-500.0,0.00014999,2]
[422568002,1779099032000,-500.0,0.00014999,2]
[422568003,1779099032000,-500.0,0.00014999,2]
[422568010,1779099032000,-500.0,0.00014999,2]
[422568017,1779099032000,-500.0,0.00014999,2]
[422568009,1779099032000,-500.0,0.00014999,2]
[422568013,1779099032000,-500.0,0.00014999,2]
[422568032,1779099032000,-500.0,0.00014999,2]
[422568014,1779099032000,-500.0,0.00014999,2]
[422568016,1779099032000,-500.0,0.00014999,2]
[422568020,1779099032000,-500.0,0.00014999,2]
[422568018,1779099032000,-500.0,0.00014999,2]
[422568024,1779099032000,-500.0,0.00014999,2]
[422568022,1779099032000,-500.0,0.00014999,2]
[422568023,1779099032000,-500.0,0.00014999,2]
[422568025,1779099032000,-500.0,0.00014999,2]
[422568028,1779099032000,-500.0,0.00014999,2]
[422568029,1779099032000,-500.0,0.00014999,2]
[422568005,1779099032000,-500.0,0.00014999,2]
[422568019,1779099032000,-500.0,0.00014999,2]
[422568007,1779099032000,-500.0,0.00014999,2]